[Event "*** Titled Tuesday Blitz"]
[Site "Chess.com"]
[Date "2020.04.28"]
[Round "8"]
[White "AlexOstrovskiy"]
[Black "WPWPWP-2015"]
[Result "1-0"]
[WhiteElo "2564"]
[BlackElo "2425"]
[TimeControl "180+1"]
[EndTime "11:36:35 PDT"]
[Termination "AlexOstrovskiy won by checkmate"]

1. d4 {[%clk 0:03:00.9]} 1... Nf6 {[%clk 0:02:54.8]} 2. Bg5 {[%clk 0:03:00.5]}
2... d5 {[%clk 0:02:52.8]} 3. Bxf6 {[%clk 0:02:57.4]} 3... exf6 {[%clk
0:02:51.7]} 4. e3 {[%clk 0:02:58.3]} 4... Bf5 {[%clk 0:02:50.8]} 5. g3 {[%clk
0:02:56.9]} 5... c6 {[%clk 0:02:50.2]} 6. Bg2 {[%clk 0:02:56.5]} 6... Nd7 {[%clk
0:02:49.2]} 7. Ne2 {[%clk 0:02:56]} 7... Bd6 {[%clk 0:02:48.7]} 8. Nd2 {[%clk
0:02:52.8]} 8... O-O {[%clk 0:02:47.7]} 9. O-O {[%clk 0:02:51.2]} 9... b5 {[%clk
0:02:46.2]} 10. e4 {[%clk 0:02:47.9]} 10... Be6 {[%clk 0:02:45.7]} 11. exd5
{[%clk 0:02:30.4]} 11... cxd5 {[%clk 0:02:41.5]} 12. Nc3 {[%clk 0:02:30]} 12...
Nb6 {[%clk 0:02:35.7]} 13. Nxb5 {[%clk 0:02:29.5]} 13... Bb4 {[%clk 0:02:34.8]}
14. c3 {[%clk 0:02:24.5]} 14... Be7 {[%clk 0:02:31.8]} 15. a4 {[%clk 0:02:22.8]}
15... a6 {[%clk 0:02:18.2]} 16. Na3 {[%clk 0:02:17.5]} 16... Rc8 {[%clk
0:02:16]} 17. a5 {[%clk 0:02:12.6]} 17... Na8 {[%clk 0:02:03.7]} 18. Nc2 {[%clk
0:02:12.3]} 18... Nc7 {[%clk 0:01:59.4]} 19. Ne3 {[%clk 0:02:10.8]} 19... f5
{[%clk 0:01:59.2]} 20. Re1 {[%clk 0:02:04.1]} 20... Re8 {[%clk 0:01:26.2]} 21.
Nf3 {[%clk 0:01:41.5]} 21... g6 {[%clk 0:01:25.1]} 22. Ne5 {[%clk 0:01:41.3]}
22... Nb5 {[%clk 0:01:20.6]} 23. Nd3 {[%clk 0:01:38.9]} 23... h5 {[%clk
0:00:56.1]} 24. Nf4 {[%clk 0:01:35]} 24... Bg5 {[%clk 0:00:51.4]} 25. Nexd5
{[%clk 0:01:25.2]} 25... Nd6 {[%clk 0:00:47.4]} 26. Nxe6 {[%clk 0:01:22]} 26...
fxe6 {[%clk 0:00:46.6]} 27. Nb6 {[%clk 0:01:22.2]} 27... Rc7 {[%clk 0:00:44.3]}
28. Qb3 {[%clk 0:01:18.9]} 28... Rce7 {[%clk 0:00:41.2]} 29. h4 {[%clk
0:01:18.9]} 29... Bf6 {[%clk 0:00:39.7]} 30. Re2 {[%clk 0:01:10.4]} 30... Kg7
{[%clk 0:00:37.6]} 31. Rae1 {[%clk 0:01:10.6]} 31... e5 {[%clk 0:00:32.5]} 32.
Nd5 {[%clk 0:01:08]} 32... e4 {[%clk 0:00:28.5]} 33. Nxe7 {[%clk 0:01:06.4]}
33... Rxe7 {[%clk 0:00:28.5]} 34. Qb6 {[%clk 0:01:00.9]} 34... Qd7 {[%clk
0:00:27.2]} 35. Qxa6 {[%clk 0:00:57.6]} 35... g5 {[%clk 0:00:24.1]} 36. hxg5
{[%clk 0:00:49.8]} 36... Bxg5 {[%clk 0:00:25]} 37. Qa8 {[%clk 0:00:41.9]} 37...
h4 {[%clk 0:00:24.5]} 38. Qd5 {[%clk 0:00:39.1]} 38... hxg3 {[%clk 0:00:23.6]}
39. fxg3 {[%clk 0:00:40]} 39... Qc7 {[%clk 0:00:19.4]} 40. Rf1 {[%clk
0:00:31.2]} 40... Rf7 {[%clk 0:00:13.9]} 41. a6 {[%clk 0:00:23.4]} 41... e3
{[%clk 0:00:12.9]} 42. a7 {[%clk 0:00:22.6]} 42... Ne4 {[%clk 0:00:07.5]} 43.
a8=Q {[%clk 0:00:15.8]} 43... Nxg3 {[%clk 0:00:04.6]} 44. Ree1 {[%clk
0:00:07.8]} 44... e2 {[%clk 0:00:04.4]} 45. Rf2 {[%clk 0:00:06.8]} 45... Be3
{[%clk 0:00:04.3]} 46. Qe5+ {[%clk 0:00:06]} 46... Qxe5 {[%clk 0:00:03.9]} 47.
dxe5 {[%clk 0:00:06.9]} 47... Ne4 {[%clk 0:00:03.7]} 48. Bxe4 {[%clk 0:00:06.1]}
48... fxe4 {[%clk 0:00:04]} 49. Rxe2 {[%clk 0:00:04]} 49... Bc5 {[%clk
0:00:03.3]} 50. Qxe4 {[%clk 0:00:04]} 50... Re7 {[%clk 0:00:02.8]} 51. Qg4+
{[%clk 0:00:04.1]} 51... Kh8 {[%clk 0:00:02.9]} 52. Kf1 {[%clk 0:00:05]} 52...
Rg7 {[%clk 0:00:03]} 53. Rh2+ {[%clk 0:00:05.2]} 53... Kg8 {[%clk 0:00:03.3]}
54. Rhg2 {[%clk 0:00:05]} 54... Rxg4 {[%clk 0:00:02.8]} 55. Rxg4+ {[%clk
0:00:05.9]} 55... Kf7 {[%clk 0:00:03.3]} 56. b4 {[%clk 0:00:06.8]} 56... Ke7
{[%clk 0:00:04.1]} 57. e6 {[%clk 0:00:07.3]} 57... Bd6 {[%clk 0:00:03.4]} 58.
Rg7+ {[%clk 0:00:07.6]} 58... Ke8 {[%clk 0:00:04.3]} 59. Rd7 {[%clk 0:00:08.2]}
59... Be7 {[%clk 0:00:04.5]} 60. b5 {[%clk 0:00:08.5]} 60... Bf6 {[%clk
0:00:04.8]} 61. Rg2 {[%clk 0:00:08.7]} 61... Be5 {[%clk 0:00:05.7]} 62. Rg8#
{[%clk 0:00:08.6]} 1-0

[Event "*** Titled Tuesday Blitz"]
[Site "Chess.com"]
[Date "2020.04.28"]
[Round "8"]
[White "Olga_Girya"]
[Black "svilson23"]
[Result "0-1"]
[WhiteElo "2442"]
[BlackElo "2255"]
[TimeControl "180+1"]
[EndTime "11:36:36 PDT"]
[Termination "svilson23 won by resignation"]

1. d4 {[%clk 0:03:00.9]} 1... d5 {[%clk 0:02:58.7]} 2. c4 {[%clk 0:02:56.9]}
2... e6 {[%clk 0:02:59]} 3. Nf3 {[%clk 0:02:55.8]} 3... f5 {[%clk 0:02:54.4]} 4.
Bf4 {[%clk 0:02:53.7]} 4... c6 {[%clk 0:02:54.7]} 5. e3 {[%clk 0:02:53.8]} 5...
Nf6 {[%clk 0:02:54.6]} 6. Nbd2 {[%clk 0:02:48.7]} 6... Be7 {[%clk 0:02:52.7]} 7.
g3 {[%clk 0:02:34.1]} 7... Nbd7 {[%clk 0:02:50.1]} 8. Rc1 {[%clk 0:02:32.3]}
8... Kf8 {[%clk 0:02:43.8]} 9. h4 {[%clk 0:02:20.7]} 9... Ne4 {[%clk 0:02:29.5]}
10. a3 {[%clk 0:02:17.2]} 10... a5 {[%clk 0:02:22.2]} 11. Bd3 {[%clk 0:02:15.5]}
11... g6 {[%clk 0:02:10.8]} 12. Qc2 {[%clk 0:01:46.7]} 12... Kf7 {[%clk
0:02:08.1]} 13. Ne5+ {[%clk 0:01:44.6]} 13... Nxe5 {[%clk 0:02:07.4]} 14. Bxe5
{[%clk 0:01:44.8]} 14... Bf6 {[%clk 0:01:59.3]} 15. Bxf6 {[%clk 0:01:41.9]}
15... Qxf6 {[%clk 0:01:57.3]} 16. Nf3 {[%clk 0:01:41.8]} 16... Nd6 {[%clk
0:01:37.4]} 17. Ne5+ {[%clk 0:01:41.2]} 17... Ke7 {[%clk 0:01:33.1]} 18. Qe2
{[%clk 0:01:37.9]} 18... Bd7 {[%clk 0:01:31.9]} 19. f4 {[%clk 0:01:27.2]} 19...
Nf7 {[%clk 0:01:30.6]} 20. Nf3 {[%clk 0:01:23.7]} 20... h5 {[%clk 0:01:29.9]}
21. Qc2 {[%clk 0:01:18.5]} 21... Rhc8 {[%clk 0:01:22.8]} 22. Qb3 {[%clk
0:01:18]} 22... b5 {[%clk 0:01:11]} 23. cxb5 {[%clk 0:01:09.2]} 23... cxb5
{[%clk 0:01:10.6]} 24. O-O {[%clk 0:01:08]} 24... Nd6 {[%clk 0:01:00.6]} 25. Qd1
{[%clk 0:00:42.2]} 25... Qf8 {[%clk 0:00:34.7]} 26. Qe2 {[%clk 0:00:35.4]} 26...
Qe8 {[%clk 0:00:33.9]} 27. Rc2 {[%clk 0:00:33.9]} 27... Rxc2 {[%clk 0:00:31.6]}
28. Qxc2 {[%clk 0:00:33.9]} 28... Rc8 {[%clk 0:00:27.7]} 29. Qd2 {[%clk
0:00:33.7]} 29... Qd8 {[%clk 0:00:25.4]} 30. Ne5 {[%clk 0:00:32.9]} 30... Be8
{[%clk 0:00:24.7]} 31. Rc1 {[%clk 0:00:32.3]} 31... Rxc1+ {[%clk 0:00:21.3]} 32.
Qxc1 {[%clk 0:00:32.2]} 32... Qc8 {[%clk 0:00:19.8]} 33. Qc5 {[%clk 0:00:28.8]}
33... Qxc5 {[%clk 0:00:17.8]} 34. dxc5 {[%clk 0:00:29.7]} 34... Nc4 {[%clk
0:00:18.2]} 35. Bxc4 {[%clk 0:00:25]} 35... bxc4 {[%clk 0:00:17.1]} 36. Kf2
{[%clk 0:00:25.4]} 36... Kd8 {[%clk 0:00:13]} 37. Ke1 {[%clk 0:00:25.9]} 37...
Kc7 {[%clk 0:00:13.4]} 38. Kd2 {[%clk 0:00:26.5]} 38... Kb7 {[%clk 0:00:13.8]}
39. Kc3 {[%clk 0:00:27]} 39... Ka6 {[%clk 0:00:14.3]} 40. Kd4 {[%clk 0:00:20.3]}
40... Kb5 {[%clk 0:00:14.7]} 41. c6 {[%clk 0:00:19.6]} 41... Bxc6 {[%clk
0:00:13]} 42. Nxg6 {[%clk 0:00:19]} 42... Ka4 {[%clk 0:00:12.2]} 43. Kc3 {[%clk
0:00:17.2]} 43... Kb5 {[%clk 0:00:10.6]} 44. Nf8 {[%clk 0:00:17.1]} 44... d4+
{[%clk 0:00:07.3]} 45. Kxd4 {[%clk 0:00:16]} 45... Bd5 {[%clk 0:00:07.3]} 46.
Nd7 {[%clk 0:00:15.9]} 46... Kc6 {[%clk 0:00:07.1]} 47. Ne5+ {[%clk 0:00:15.5]}
47... Kb5 {[%clk 0:00:07.1]} 48. Ng6 {[%clk 0:00:14.7]} 48... Ka4 {[%clk
0:00:06.9]} 49. Kc3 {[%clk 0:00:14.1]} 49... Kb5 {[%clk 0:00:07.3]} 50. Ne7
{[%clk 0:00:14.1]} 50... Kc5 {[%clk 0:00:06.1]} 51. Ng8 {[%clk 0:00:10.4]} 51...
e5 {[%clk 0:00:05.4]} 52. fxe5 {[%clk 0:00:08.9]} 52... Bxg8 {[%clk 0:00:04.5]}
53. a4 {[%clk 0:00:04.9]} 53... Kd5 {[%clk 0:00:04.5]} 54. Kd2 {[%clk
0:00:05.1]} 54... Kxe5 {[%clk 0:00:04.9]} 55. Kc3 {[%clk 0:00:06]} 55... Ke4
{[%clk 0:00:05]} 56. b3 {[%clk 0:00:05.3]} 56... cxb3 {[%clk 0:00:03.7]} 0-1

[Event "*** Titled Tuesday Blitz"]
[Site "Chess.com"]
[Date "2020.04.28"]
[Round "8"]
[White "wonderfultime"]
[Black "abhidabhi"]
[Result "1-0"]
[WhiteElo "2942"]
[BlackElo "2769"]
[TimeControl "180+1"]
[EndTime "11:36:37 PDT"]
[Termination "wonderfultime won on time"]

1. d4 {[%clk 0:02:57.3]} 1... Nf6 {[%clk 0:02:59.8]} 2. Nf3 {[%clk 0:02:57.1]}
2... g6 {[%clk 0:03:00.1]} 3. Bg5 {[%clk 0:02:57.4]} 3... Bg7 {[%clk 0:03:00.4]}
4. Nbd2 {[%clk 0:02:58]} 4... O-O {[%clk 0:02:59.6]} 5. c3 {[%clk 0:02:58.2]}
5... d6 {[%clk 0:02:59.6]} 6. e4 {[%clk 0:02:58.5]} 6... c5 {[%clk 0:02:58.4]}
7. dxc5 {[%clk 0:02:59.4]} 7... dxc5 {[%clk 0:02:58.4]} 8. Bc4 {[%clk 0:03:00]}
8... Nc6 {[%clk 0:02:58.7]} 9. O-O {[%clk 0:02:59.6]} 9... h6 {[%clk 0:02:58.8]}
10. Bxf6 {[%clk 0:02:55.7]} 10... Bxf6 {[%clk 0:02:58]} 11. Qe2 {[%clk
0:02:55.6]} 11... Qc7 {[%clk 0:02:55.6]} 12. Qe3 {[%clk 0:02:55.5]} 12... Ne5
{[%clk 0:02:34.1]} 13. Nxe5 {[%clk 0:02:48]} 13... Qxe5 {[%clk 0:02:13.4]} 14.
Qxh6 {[%clk 0:02:36.1]} 14... Bg7 {[%clk 0:01:56]} 15. Qxg6 {[%clk 0:02:13.9]}
15... b5 {[%clk 0:01:52.2]} 16. Qc6 {[%clk 0:01:55.7]} 16... Rb8 {[%clk
0:01:34.1]} 17. Nf3 {[%clk 0:01:30.8]} 17... Qh5 {[%clk 0:00:39.9]} 18. Be2
{[%clk 0:01:29.5]} 18... Bb7 {[%clk 0:00:33.9]} 19. Qc7 {[%clk 0:01:15.5]} 19...
Bxe4 {[%clk 0:00:32.7]} 20. Rae1 {[%clk 0:01:13]} 20... Qg6 {[%clk 0:00:28.7]}
21. Qxc5 {[%clk 0:01:06.6]} 21... e6 {[%clk 0:00:26.6]} 22. Qe3 {[%clk
0:01:04.3]} 22... b4 {[%clk 0:00:24.7]} 23. cxb4 {[%clk 0:00:48.2]} 23... Rxb4
{[%clk 0:00:22.8]} 24. b3 {[%clk 0:00:48.2]} 24... Rc8 {[%clk 0:00:20.5]} 25.
Bc4 {[%clk 0:00:45.7]} 25... Rcxc4 {[%clk 0:00:16.4]} 26. bxc4 {[%clk
0:00:45.5]} 26... Rxc4 {[%clk 0:00:16.7]} 27. Nh4 {[%clk 0:00:31.7]} 27... Qg4
{[%clk 0:00:10.8]} 28. g3 {[%clk 0:00:18.7]} 28... Bd5 {[%clk 0:00:10]} 29. Rd1
{[%clk 0:00:15.6]} 29... Qh3 {[%clk 0:00:09.8]} 30. Rxd5 {[%clk 0:00:15.4]}
30... exd5 {[%clk 0:00:10]} 31. Qe8+ {[%clk 0:00:12.7]} 31... Bf8 {[%clk
0:00:09.3]} 32. Ng2 {[%clk 0:00:10.8]} 32... Qe6 {[%clk 0:00:09.1]} 33. Qd8
{[%clk 0:00:10.3]} 33... Rc8 {[%clk 0:00:08]} 34. Qg5+ {[%clk 0:00:10.1]} 34...
Bg7 {[%clk 0:00:07.4]} 35. Nf4 {[%clk 0:00:10.5]} 35... Qe5 {[%clk 0:00:03.4]}
36. Qxe5 {[%clk 0:00:08]} 36... Bxe5 {[%clk 0:00:04.3]} 37. Nxd5 {[%clk
0:00:08.9]} 37... Rc2 {[%clk 0:00:04.8]} 38. a4 {[%clk 0:00:08.1]} 38... Bd4
{[%clk 0:00:04.7]} 39. Ne7+ {[%clk 0:00:05.8]} 39... Kf8 {[%clk 0:00:04.4]} 40.
Nf5 {[%clk 0:00:06.7]} 40... Bc5 {[%clk 0:00:04.6]} 41. h4 {[%clk 0:00:03.8]}
41... Ra2 {[%clk 0:00:04.8]} 42. Kg2 {[%clk 0:00:03.7]} 42... Kg8 {[%clk
0:00:03.7]} 43. h5 {[%clk 0:00:03]} 43... Rxa4 {[%clk 0:00:03.3]} 44. Kh3 {[%clk
0:00:03.1]} 44... Ra2 {[%clk 0:00:03.1]} 45. f4 {[%clk 0:00:03.2]} 45... a5
{[%clk 0:00:03.2]} 46. Rc1 {[%clk 0:00:03.5]} 46... Bb4 {[%clk 0:00:03.4]} 47.
Rc8+ {[%clk 0:00:03.7]} 47... Kh7 {[%clk 0:00:03.8]} 48. Rc7 {[%clk 0:00:04.2]}
48... Kg8 {[%clk 0:00:03.6]} 49. Nh6+ {[%clk 0:00:04.5]} 49... Kg7 {[%clk
0:00:03.7]} 50. Nxf7 {[%clk 0:00:04.5]} 50... Rd2 {[%clk 0:00:03.1]} 51. Ng5+
{[%clk 0:00:04.7]} 51... Kg8 {[%clk 0:00:02.5]} 52. h6 {[%clk 0:00:05.1]} 1-0

[Event "*** Titled Tuesday Blitz"]
[Site "Chess.com"]
[Date "2020.04.28"]
[Round "8"]
[White "Anton_Demchenko"]
[Black "GMKrikor"]
[Result "0-1"]
[WhiteElo "2846"]
[BlackElo "2756"]
[TimeControl "180+1"]
[EndTime "11:36:39 PDT"]
[Termination "GMKrikor won by resignation"]

1. d4 {[%clk 0:03:00.9]} 1... Nf6 {[%clk 0:02:59.6]} 2. Nf3 {[%clk 0:03:01.4]}
2... g6 {[%clk 0:02:58.8]} 3. Bf4 {[%clk 0:03:01.7]} 3... c5 {[%clk 0:02:54.1]}
4. dxc5 {[%clk 0:02:51.1]} 4... Qa5+ {[%clk 0:02:48.8]} 5. Nbd2 {[%clk
0:02:48.2]} 5... Bg7 {[%clk 0:02:42.9]} 6. e3 {[%clk 0:02:40.5]} 6... O-O {[%clk
0:02:35.4]} 7. c3 {[%clk 0:02:34.2]} 7... Qxc5 {[%clk 0:02:35]} 8. Be2 {[%clk
0:02:34.5]} 8... d6 {[%clk 0:02:32.1]} 9. O-O {[%clk 0:02:30.4]} 9... Qc7 {[%clk
0:02:24.8]} 10. h3 {[%clk 0:02:27.2]} 10... b6 {[%clk 0:02:23.7]} 11. e4 {[%clk
0:02:16]} 11... Bb7 {[%clk 0:02:23.6]} 12. e5 {[%clk 0:02:12.7]} 12... dxe5
{[%clk 0:02:17.5]} 13. Bxe5 {[%clk 0:02:12.5]} 13... Qc8 {[%clk 0:02:16.2]} 14.
Re1 {[%clk 0:02:08.6]} 14... Nbd7 {[%clk 0:02:12.3]} 15. Bd4 {[%clk 0:02:06.6]}
15... Re8 {[%clk 0:02:02.7]} 16. Bf1 {[%clk 0:02:01.4]} 16... Qc7 {[%clk
0:01:59.5]} 17. a4 {[%clk 0:02:00.7]} 17... e5 {[%clk 0:01:56.6]} 18. Be3 {[%clk
0:02:01]} 18... Nd5 {[%clk 0:01:56.8]} 19. Bg5 {[%clk 0:01:41.6]} 19... Nc5
{[%clk 0:01:36.6]} 20. Bb5 {[%clk 0:01:02.6]} 20... Re6 {[%clk 0:01:36.4]} 21.
Bc4 {[%clk 0:00:57]} 21... Ree8 {[%clk 0:01:30.8]} 22. Bb5 {[%clk 0:00:52.7]}
22... Re6 {[%clk 0:01:20.7]} 23. Bc4 {[%clk 0:00:52]} 23... h6 {[%clk
0:01:21.2]} 24. Bh4 {[%clk 0:00:51.2]} 24... g5 {[%clk 0:01:21.8]} 25. Bg3
{[%clk 0:00:51.1]} 25... Rd8 {[%clk 0:01:22.3]} 26. Nd4 {[%clk 0:00:45.6]} 26...
Ree8 {[%clk 0:01:20.1]} 27. Nf5 {[%clk 0:00:45.8]} 27... Bf8 {[%clk 0:01:18.8]}
28. Qh5 {[%clk 0:00:42.6]} 28... Re6 {[%clk 0:01:03]} 29. Rad1 {[%clk
0:00:23.2]} 29... Rde8 {[%clk 0:00:43.7]} 30. Bb5 {[%clk 0:00:19.3]} 30... Bc6
{[%clk 0:00:37.9]} 31. Qe2 {[%clk 0:00:09]} 31... Nxa4 {[%clk 0:00:22.5]} 32.
Bxc6 {[%clk 0:00:07.8]} 32... Qxc6 {[%clk 0:00:21.6]} 33. Ne4 {[%clk 0:00:08.7]}
33... Nc5 {[%clk 0:00:17.7]} 34. h4 {[%clk 0:00:08.6]} 34... Nf4 {[%clk
0:00:11.7]} 35. Qf3 {[%clk 0:00:06.7]} 35... Nxe4 {[%clk 0:00:10.6]} 36. Rxe4
{[%clk 0:00:07.6]} 36... Rf6 {[%clk 0:00:07.2]} 37. Ne3 {[%clk 0:00:04]} 37...
Ne2+ {[%clk 0:00:04.4]} 38. Qxe2 {[%clk 0:00:04.6]} 38... Qxe4 {[%clk 0:00:05]}
39. hxg5 {[%clk 0:00:05.3]} 39... hxg5 {[%clk 0:00:05.2]} 40. Rd7 {[%clk
0:00:06]} 40... Qg6 {[%clk 0:00:04.7]} 41. Ng4 {[%clk 0:00:04.9]} 41... Rfe6
{[%clk 0:00:04.2]} 42. Rxa7 {[%clk 0:00:05.2]} 42... Bg7 {[%clk 0:00:04]} 43.
Ne3 {[%clk 0:00:04.9]} 43... e4 {[%clk 0:00:04.2]} 44. Qc4 {[%clk 0:00:04.9]}
44... f5 {[%clk 0:00:04.4]} 45. Bc7 {[%clk 0:00:03.7]} 45... f4 {[%clk
0:00:04.2]} 46. Nd5 {[%clk 0:00:04.3]} 46... e3 {[%clk 0:00:04.3]} 47. fxe3
{[%clk 0:00:04.4]} 47... fxe3 {[%clk 0:00:04.9]} 48. Bg3 {[%clk 0:00:05.3]}
48... e2 {[%clk 0:00:04.7]} 49. Be1 {[%clk 0:00:05.5]} 49... Qe4 {[%clk
0:00:05]} 50. Qxe4 {[%clk 0:00:04.6]} 50... Rxe4 {[%clk 0:00:05.9]} 51. Nxb6
{[%clk 0:00:03.6]} 51... Rf8 {[%clk 0:00:06.2]} 52. Kh2 {[%clk 0:00:02.8]} 52...
Rf1 {[%clk 0:00:05]} 53. Bg3 {[%clk 0:00:03.2]} 53... Be5 {[%clk 0:00:05.3]} 54.
Bxe5 {[%clk 0:00:02.4]} 54... Rxe5 {[%clk 0:00:05.4]} 55. Nd7 {[%clk 0:00:02.4]}
55... e1=Q {[%clk 0:00:05.9]} 0-1

[Event "*** Titled Tuesday Blitz"]
[Site "Chess.com"]
[Date "2020.04.28"]
[Round "8"]
[White "LiemLe"]
[Black "vladislavkovalev"]
[Result "1/2-1/2"]
[WhiteElo "3003"]
[BlackElo "2877"]
[TimeControl "180+1"]
[EndTime "11:36:41 PDT"]
[Termination "Game drawn by repetition"]

1. d4 {[%clk 0:03:00.9]} 1... Nf6 {[%clk 0:02:59.6]} 2. c4 {[%clk 0:03:00.8]}
2... e6 {[%clk 0:03:00.2]} 3. g3 {[%clk 0:03:00.5]} 3... d5 {[%clk 0:03:00.5]}
4. Bg2 {[%clk 0:03:00.5]} 4... Be7 {[%clk 0:03:01.1]} 5. Nf3 {[%clk 0:03:00.1]}
5... O-O {[%clk 0:03:01.8]} 6. O-O {[%clk 0:03:00.6]} 6... dxc4 {[%clk
0:03:02.2]} 7. Qc2 {[%clk 0:03:01.1]} 7... a6 {[%clk 0:03:02.7]} 8. a4 {[%clk
0:03:01.7]} 8... Bd7 {[%clk 0:03:02.8]} 9. Qxc4 {[%clk 0:03:01.5]} 9... Bc6
{[%clk 0:03:03.4]} 10. Bf4 {[%clk 0:03:00.7]} 10... Bd6 {[%clk 0:03:02.9]} 11.
Qc1 {[%clk 0:02:53.9]} 11... a5 {[%clk 0:03:02.8]} 12. Nc3 {[%clk 0:02:49.5]}
12... Na6 {[%clk 0:03:00.6]} 13. Bd2 {[%clk 0:02:46.9]} 13... Ne4 {[%clk
0:02:50.3]} 14. Nxe4 {[%clk 0:02:46.7]} 14... Bxe4 {[%clk 0:02:51.2]} 15. Bxa5
{[%clk 0:02:46.9]} 15... Qe7 {[%clk 0:02:09.8]} 16. Bc3 {[%clk 0:02:38.8]} 16...
Nb4 {[%clk 0:02:07.1]} 17. Nh4 {[%clk 0:02:26.7]} 17... Bxg2 {[%clk 0:02:03.9]}
18. Nxg2 {[%clk 0:02:27.6]} 18... Nd5 {[%clk 0:01:59]} 19. e4 {[%clk 0:02:14.7]}
19... Nxc3 {[%clk 0:01:59.1]} 20. bxc3 {[%clk 0:02:13.9]} 20... Qd7 {[%clk
0:01:59.6]} 21. Qc2 {[%clk 0:02:06.9]} 21... Ra6 {[%clk 0:01:57.9]} 22. Ra2
{[%clk 0:01:40]} 22... Rfa8 {[%clk 0:01:56.9]} 23. Rfa1 {[%clk 0:01:40.6]} 23...
c5 {[%clk 0:01:45]} 24. Ne3 {[%clk 0:01:34.3]} 24... cxd4 {[%clk 0:01:42.3]} 25.
cxd4 {[%clk 0:01:35.2]} 25... Bf8 {[%clk 0:01:36.9]} 26. d5 {[%clk 0:01:32.8]}
26... exd5 {[%clk 0:01:33.8]} 27. Nxd5 {[%clk 0:01:33.7]} 27... Qh3 {[%clk
0:01:27.5]} 28. Nf4 {[%clk 0:01:22.6]} 28... Qd7 {[%clk 0:01:23.5]} 29. Kg2
{[%clk 0:01:20.9]} 29... b5 {[%clk 0:01:15.8]} 30. axb5 {[%clk 0:00:37.3]} 30...
Rxa2 {[%clk 0:01:16.7]} 31. Rxa2 {[%clk 0:00:38]} 31... Rxa2 {[%clk 0:01:17]}
32. Qxa2 {[%clk 0:00:38.9]} 32... Qxb5 {[%clk 0:01:17.7]} 33. Qa8 {[%clk
0:00:35.7]} 33... g6 {[%clk 0:01:11.2]} 34. Nd5 {[%clk 0:00:35.6]} 34... Qb2
{[%clk 0:01:08]} 35. Qa7 {[%clk 0:00:13]} 35... h5 {[%clk 0:01:05.9]} 36. h4
{[%clk 0:00:12.9]} 36... Kg7 {[%clk 0:01:04.5]} 37. Qc7 {[%clk 0:00:12.6]} 37...
Kg8 {[%clk 0:01:02.7]} 38. Qc3 {[%clk 0:00:12]} 38... Qxc3 {[%clk 0:00:52.2]}
39. Nxc3 {[%clk 0:00:12.9]} 39... f6 {[%clk 0:00:52.9]} 40. Nd5 {[%clk
0:00:12.3]} 40... Kf7 {[%clk 0:00:53.5]} 41. f4 {[%clk 0:00:11.8]} 41... Bc5
{[%clk 0:00:52.2]} 42. f5 {[%clk 0:00:09.7]} 42... gxf5 {[%clk 0:00:43]} 43.
exf5 {[%clk 0:00:10.6]} 43... Bd6 {[%clk 0:00:43.6]} 44. Kf3 {[%clk 0:00:10.6]}
44... Be5 {[%clk 0:00:20.1]} 45. Nf4 {[%clk 0:00:10]} 45... Bxf4 {[%clk
0:00:20.5]} 46. Kxf4 {[%clk 0:00:10.9]} 46... Kf8 {[%clk 0:00:21.2]} 47. Ke4
{[%clk 0:00:08.1]} 47... Ke8 {[%clk 0:00:20.2]} 48. Kf4 {[%clk 0:00:07.1]} 48...
Kf8 {[%clk 0:00:20.3]} 49. Kf3 {[%clk 0:00:05.9]} 49... Kf7 {[%clk 0:00:20.5]}
50. g4 {[%clk 0:00:04.2]} 50... hxg4+ {[%clk 0:00:20.4]} 51. Kxg4 {[%clk
0:00:05.1]} 51... Kg7 {[%clk 0:00:21]} 52. Kf4 {[%clk 0:00:03.5]} 52... Kh6
{[%clk 0:00:21.2]} 53. Kg4 {[%clk 0:00:03.6]} 53... Kh7 {[%clk 0:00:20.8]} 54.
Kf3 {[%clk 0:00:03.7]} 54... Kh6 {[%clk 0:00:21.4]} 55. Kg3 {[%clk 0:00:04.3]}
55... Kh5 {[%clk 0:00:21.9]} 56. Kh3 {[%clk 0:00:04.8]} 56... Kh6 {[%clk
0:00:22.8]} 57. Kg4 {[%clk 0:00:05.4]} 57... Kh7 {[%clk 0:00:22.7]} 58. Kf4
{[%clk 0:00:06.3]} 58... Kh6 {[%clk 0:00:23.6]} 59. Ke4 {[%clk 0:00:06.6]} 59...
Kh5 {[%clk 0:00:23.7]} 60. Kf4 {[%clk 0:00:04.3]} 60... Kxh4 {[%clk 0:00:24.3]}
61. Kf3 {[%clk 0:00:04.7]} 61... Kg5 {[%clk 0:00:24.6]} 62. Ke4 {[%clk
0:00:05.6]} 62... Kg4 {[%clk 0:00:25.2]} 63. Ke3 {[%clk 0:00:06.2]} 63... Kxf5
{[%clk 0:00:26.1]} 64. Kf3 {[%clk 0:00:07.1]} 64... Ke5 {[%clk 0:00:26.8]} 65.
Ke3 {[%clk 0:00:07.4]} 65... Kf5 {[%clk 0:00:27.7]} 66. Kf3 {[%clk 0:00:07.8]}
66... Kg5 {[%clk 0:00:28.6]} 67. Kg3 {[%clk 0:00:08.3]} 67... f5 {[%clk
0:00:29.5]} 68. Kf3 {[%clk 0:00:08.8]} 68... f4 {[%clk 0:00:29.8]} 69. Kf2
{[%clk 0:00:09.3]} 69... Kf5 {[%clk 0:00:30.7]} 70. Kf3 {[%clk 0:00:09.6]} 70...
Ke5 {[%clk 0:00:31.6]} 71. Kf2 {[%clk 0:00:10.1]} 71... Ke4 {[%clk 0:00:32.5]}
72. Ke2 {[%clk 0:00:10.8]} 72... f3+ {[%clk 0:00:33.4]} 73. Kf2 {[%clk
0:00:11.4]} 73... Kf4 {[%clk 0:00:34.3]} 74. Kf1 {[%clk 0:00:11.9]} 74... Ke3
{[%clk 0:00:35.2]} 75. Ke1 {[%clk 0:00:12.4]} 75... Ke4 {[%clk 0:00:36.1]} 76.
Kf2 {[%clk 0:00:12.7]} 76... Kf4 {[%clk 0:00:37]} 77. Kf1 {[%clk 0:00:13.1]}
77... Kg4 {[%clk 0:00:37.9]} 78. Kf2 {[%clk 0:00:13.3]} 78... Kf4 {[%clk
0:00:38.2]} 1/2-1/2